bitfinex/quotes_ETHUSD_20240702
["timestamp","ask_amount","ask_price","bid_price","bid_amount"]
[1719905354203,0.50230662,3447.3,3447.1,0.796]
[1719905354428,2.90065,3447.5,3447.1,0.796]
[1719905354429,0.50230662,3447.4,3447.1,0.796]
[1719905354633,0.50230166,3447.3,3447.1,0.796]
[1719905354875,2.90065,3447.5,3447.1,0.796]
[1719905355134,0.50230136,3447.4,3447.1,0.796]
[1719905355313,0.50230136,3447.3,3447.1,0.796]
[1719905355516,0.50230136,3447.4,3447.1,0.796]
[1719905355913,0.50230137,3447.3,3447.1,0.796]
[1719905356103,2.90065,3447.5,3447.1,0.796]
[1719905356307,0.502286,3447.4,3447.1,0.796]
[1719905356507,2.90065,3447.5,3447.1,0.796]
[1719905356713,0.50228275,3447.4,3447.1,0.796]
[1719905356919,0.50228275,3447.3,3446.9,5.90115]
[1719905357135,0.50228275,3447.4,3447.2,0.826]
[1719905357334,0.50228429,3447.3,3447.2,0.826]
[1719905358915,0.50228429,3447.3,3447.0,0.826]
[1719905359308,2.90065,3447.5,3447.0,0.826]
[1719905359503,2.90065,3447.5,3446.9,6.970115]
[1719905359504,0.50228729,3447.4,3447.2,0.826]
[1719905359724,2.90065,3447.5,3447.2,0.826]
[1719905359947,0.50227034,3447.4,3447.2,0.826]
[1719905360235,2.90065,3447.5,3447.2,0.826]
[1719905360437,0.50226377,3447.4,3446.9,6.970115]
[1719905360747,2.2918,3447.7,3447.3,0.826]
[1719905360942,0.50225826,3447.6,3447.3,0.826]
[1719905361243,0.50225826,3447.5,3447.3,0.826]
[1719905361549,0.50225826,3447.4,3447.3,0.826]
[1719905361738,0.50225826,3447.5,3447.3,0.826]
[1719905362552,0.50225985,3447.4,3447.1,0.826]
[1719905362846,0.50227504,3447.3,3447.1,0.826]
[1719905363023,2.90061,3447.6,3447.1,0.826]
[1719905363351,0.50228,3447.5,3447.1,0.826]
[1719905363653,2.90061,3447.6,3447.1,0.826]
[1719905363654,0.50228,3447.4,3447.1,0.826]
[1719905363852,0.50228,3447.5,3447.1,0.826]
[1719905364212,4.262494,3447.5,3446.7,2.90128]
[1719905364417,5.78822,3447.4,3446.6,2.90137]
[1719905364648,0.50228,3447.3,3446.7,3.0]
[1719905365831,0.5023265,3447.3,3446.7,3.0]
[1719905366030,0.5023265,3447.2,3446.7,3.0]
[1719905366312,0.5023265,3447.1,3446.8,0.826]
[1719905367119,5.28594,3447.4,3446.8,0.826]
[1719905367928,0.50232004,3447.0,3446.8,0.826]
[1719905368322,0.50232004,3447.0,3446.4,2.90156]
[1719905368323,5.1714,3446.9,3446.2,2.9017]
[1719905368521,5.1714,3446.9,3446.3,0.826]
[1719905368722,5.1714,3446.9,3446.2,2.9017]
[1719905369144,5.1714,3446.9,3446.4,0.826]
[1719905371155,2.90126,3446.8,3446.4,0.826]
[1719905371859,0.50239585,3446.7,3446.6,0.826]
[1719905373948,0.50237989,3446.7,3446.6,0.826]
[1719905376742,0.50237989,3446.7,3446.6,0.85498324]
[1719905377286,0.5023798,3446.7,3446.6,0.85498324]
[1719905377873,0.50237968,3446.7,3446.6,0.85498324]
[1719905379561,5.17143,3446.9,3446.6,0.85498324]
[1719905379875,0.50236048,3446.8,3446.6,0.85498324]
[1719905380175,0.50236048,3446.7,3446.6,0.85498324]
[1719905380347,0.50236048,3446.8,3446.6,0.85498324]
[1719905380547,0.50237574,3446.7,3446.6,0.85498324]
[1719905380746,0.50237091,3446.7,3446.6,0.85498324]
[1719905380949,2.90125,3446.8,3446.6,0.85498324]
[1719905381581,2.90113,3447.0,3446.6,0.85498324]
[1719905381776,0.50235723,3446.9,3446.6,0.85498324]
[1719905381971,0.50235723,3446.8,3446.6,0.85498324]
[1719905383680,0.50235723,3446.8,3446.6,0.02898324]
[1719905383877,2.90117,3446.9,3446.7,0.826]
[1719905384177,0.50237155,3446.8,3446.7,0.826]
[1719905385079,0.50237155,3446.8,3446.5,0.826]
[1719905385281,0.50237155,3446.7,3446.5,0.826]
[1719905385465,0.50237155,3446.8,3446.5,0.826]
[1719905386185,2.99547155,3446.8,3446.5,0.826]
[1719905386481,0.50237155,3446.7,3446.5,0.826]
[1719905387252,2.4931,3446.8,3446.5,0.826]
[1719905387448,0.50237559,3446.7,3446.5,0.826]
[1719905387666,2.4931,3446.8,3446.5,0.826]
[1719905387952,0.50237557,3446.7,3446.5,0.826]
[1719905388155,2.4931,3446.8,3446.5,0.826]
[1719905388353,0.50237557,3446.7,3446.5,0.826]
[1719905388554,2.4931,3446.8,3446.5,0.826]
[1719905388780,0.50237619,3446.7,3446.5,0.826]
[1719905388979,2.4931,3446.8,3446.5,0.826]
[1719905389182,0.5023756,3446.7,3446.5,0.826]
[1719905389386,2.4931,3446.8,3446.5,0.826]
[1719905389583,0.50237475,3446.7,3446.5,0.826]
[1719905389882,2.90124,3446.8,3446.6,0.826]
[1719905390082,0.50235853,3446.7,3446.6,0.826]
[1719905390556,0.50236037,3446.7,3446.6,0.826]
[1719905391070,0.50236037,3446.7,3446.4,0.826]
[1719905391071,0.50236292,3446.7,3446.4,0.826]
[1719905391249,0.50236292,3446.6,3446.4,0.826]
[1719905391447,2.90124,3446.8,3446.4,0.826]
[1719905391669,0.50236917,3446.7,3446.5,0.02918459]
[1719905391881,0.50236917,3446.6,3446.5,0.02918459]
[1719905393774,0.50236967,3446.6,3446.5,0.02918459]
[1719905394682,3.40377967,3446.6,3446.5,0.02918459]
[1719905394871,5.67107967,3446.6,3446.5,0.02918459]
[1719905395274,5.67107967,3446.6,3446.1,0.826]
[1719905395489,0.50236967,3446.5,3446.1,1.387527]
[1719905395661,0.50236967,3446.5,3446.2,0.02920347]
[1719905396859,5.16871,3446.6,3446.2,0.02920347]
[1719905397184,0.50240875,3446.5,3446.2,0.02920347]
[1719905397505,0.50240875,3446.4,3446.3,0.826]
[1719905397676,0.50240875,3446.5,3446.3,0.826]
[1719905398166,0.50240875,3446.5,3446.4,0.02920347]
[1719905400176,5.16871,3446.6,3446.4,0.02920347]
[1719905400368,0.50239217,3446.5,3446.4,0.02920347]
[1719905400556,0.50239217,3446.5,3446.4,0.85520347]
[1719905401165,0.50239217,3446.5,3446.4,1.28705852]
[1719905402692,0.50237395,3446.5,3446.4,1.28705852]
[1719905403103,5.24016,3446.9,3446.4,0.46105852]
[1719905403273,0.5023841,3446.5,3446.4,0.85520347]
[1719905404965,0.5023841,3446.5,3446.4,8.60367295]
[1719905405163,5.22497,3447.4,3446.6,2.90134]
[1719905405382,0.7126038,3447.3,3447.0,0.826]
[1719905405575,0.50232989,3447.2,3447.0,0.826]
[1719905405780,2.3242,3447.4,3447.0,0.826]
[1719905405959,0.50231492,3447.1,3447.0,0.826]
[1719905406166,0.5023159,3447.1,3447.0,0.826]
[1719905407385,0.5023159,3447.1,3446.8,0.826]
[1719905407591,0.5023159,3447.0,3446.8,0.826]
[1719905407896,0.5023159,3446.9,3446.8,0.826]
[1719905408068,0.5023159,3447.2,3446.8,0.826]
[1719905408270,0.21027155,3447.1,3446.8,0.826]
[1719905408491,0.5023159,3447.0,3446.8,0.826]
[1719905408686,0.5023159,3447.2,3446.6,2.90134]
[1719905408895,1.31373758,3447.1,3446.8,0.826]
[1719905409099,2.4782,3447.0,3446.6,0.826]
[1719905409402,0.71260385,3446.9,3446.6,0.826]
[1719905409695,0.50234993,3446.8,3446.6,0.826]
[1719905409863,0.50234993,3446.9,3446.6,0.826]
[1719905410272,0.50234993,3446.9,3446.6,3.7274]
[1719905410273,0.21025008,3446.8,3446.6,3.7274]
[1719905410604,0.50234993,3446.7,3446.4,0.02920347]
[1719905410802,0.50234993,3446.6,3446.5,0.826]
[1719905411267,0.50234993,3446.9,3446.5,0.826]
[1719905411468,0.71259965,3446.8,3446.5,0.826]
[1719905411773,0.50234993,3446.7,3446.5,0.826]
[1719905411978,0.50234993,3446.9,3446.5,0.826]
[1719905412191,0.50234993,3446.6,3446.5,0.826]
[1719905412388,0.50236187,3446.6,3446.5,0.826]
[1719905415614,5.37927,3447.0,3446.5,0.826]
[1719905415789,0.50237223,3446.6,3446.5,0.826]
[1719905416107,0.50237369,3446.6,3446.5,0.826]
[1719905417514,0.50237369,3446.6,3446.5,0.85509649]
[1719905418613,0.5023522,3446.6,3446.5,0.85509649]
[1719905418985,0.50235038,3446.6,3446.5,0.85509649]
[1719905419517,0.50235038,3446.6,3446.5,1.52091914]
[1719905420194,2.4782,3447.0,3446.5,1.52091914]
[1719905420395,0.50234243,3446.9,3446.7,0.826]
[1719905420596,0.50234243,3446.8,3446.7,0.826]
[1719905420920,0.50234647,3446.9,3446.8,0.02914682]
[1719905421124,0.50234647,3446.9,3446.7,0.85516569]
[1719905421284,0.50234647,3446.8,3446.7,0.826]
[1719905421890,0.50233636,3446.8,3446.7,0.826]
[1719905423185,0.50233636,3446.8,3446.7,1.387478]
[1719905424110,0.50233636,3446.8,3446.7,4.288798]
[1719905424297,5.19981,3447.6,3446.9,2.90111]
[1719905424625,0.71249108,3447.5,3447.4,0.826]
[1719905425121,0.71247683,3447.5,3447.4,0.826]
[1719905426201,0.50226345,3447.5,3447.4,0.826]
[1719905427491,1.3625118,3447.5,3447.0,2.90107]
[1719905427693,0.50226345,3447.4,3447.1,0.826]
[1719905428212,5.19981,3447.6,3447.1,0.826]
[1719905428412,0.50227777,3447.5,3447.1,0.826]
[1719905428604,0.50227777,3447.4,3447.1,0.826]
[1719905428809,0.50226917,3447.3,3447.1,0.826]
[1719905428990,5.19981,3447.6,3447.1,0.826]
[1719905429191,0.50225999,3447.5,3447.3,0.826]
[1719905429428,0.50225999,3447.4,3447.3,0.826]
[1719905431602,0.50226785,3447.4,3447.3,0.826]
[1719905432139,0.50226788,3447.4,3447.3,0.826]
[1719905432440,0.50226788,3447.4,3447.3,0.85481969]
[1719905432794,0.50226788,3447.5,3447.3,0.85481969]
[1719905434932,2.2992,3447.6,3447.3,0.85481969]
[1719905435129,0.50224608,3447.5,3447.3,0.85481969]
[1719905438346,0.50224901,3447.4,3447.3,0.85481969]
[1719905439844,2.2613,3447.8,3447.3,0.85481969]
[1719905440059,0.5022203,3447.7,3447.5,0.826]
[1719905440341,0.5022203,3447.6,3447.5,0.826]
[1719905440706,0.5022203,3447.6,3447.5,0.85482598]
[1719905441537,0.50222602,3447.6,3447.5,0.85482598]
[1719905441912,0.50222603,3447.6,3447.5,0.85482598]
[1719905443113,0.50222603,3447.6,3447.5,0.02882598]
[1719905443611,0.50222603,3447.6,3447.2,2.90088]
[1719905443826,0.50222603,3447.5,3447.3,0.826]
[1719905444028,0.50222603,3447.7,3447.3,0.826]
[1719905444228,0.50224843,3447.6,3447.3,0.826]
[1719905444458,0.50224843,3447.5,3447.3,0.826]
[1719905444660,5.967903,3447.8,3447.3,0.826]
[1719905444866,0.50224829,3447.7,3447.3,0.826]
[1719905445234,0.50224829,3447.6,3447.3,0.826]
[1719905445533,0.50224829,3447.5,3447.3,0.826]
[1719905445733,0.50224829,3447.7,3447.3,0.826]
[1719905445933,1.38907159,3447.7,3447.3,0.826]
[1719905446144,0.50224829,3447.6,3447.3,0.826]
[1719905446345,0.50224829,3447.5,3447.3,0.826]
[1719905446546,5.1617,3447.8,3447.3,0.826]
[1719905446865,0.5022404,3447.7,3447.3,0.826]
[1719905447235,0.5022404,3447.6,3447.4,0.02876308]
[1719905447435,0.5022404,3447.7,3447.4,0.02876308]
[1719905448065,0.50224021,3447.6,3447.4,0.02876308]
[1719905448242,0.50224021,3447.5,3447.4,0.02876308]
[1719905451268,5.1617,3447.8,3447.4,0.02876308]
[1719905451474,0.50224355,3447.5,3447.4,0.02876308]
[1719905451675,0.50224362,3447.7,3447.5,0.826]
[1719905451868,0.50224362,3447.6,3447.5,0.826]
[1719905452269,0.50224362,3447.6,3447.5,0.85476308]
[1719905452586,0.50224362,3447.6,3447.5,0.02876308]
[1719905453967,2.79234362,3447.6,3447.5,0.02876308]
[1719905454163,6.55221998,3447.6,3447.5,0.02876308]
[1719905454664,2.90073,3447.4,3446.5,4.78875]
[1719905454867,2.90112,3447.0,3446.4,3.06407959]
[1719905455114,2.90112,3447.0,3446.6,0.826]
[1719905455115,2.3198,3446.8,3446.6,0.826]
[1719905455253,2.3198,3446.8,3446.2,2.90174]
[1719905455589,0.50233352,3446.7,3446.5,0.826]
[1719905457582,2.3198,3446.8,3446.5,0.826]
[1719905457886,0.50237249,3446.7,3446.2,2.90174]
[1719905458052,2.3198,3446.8,3446.6,0.826]
[1719905458252,0.50236753,3446.7,3446.6,0.826]
[1719905460652,0.50236961,3446.7,3446.6,0.826]
[1719905461670,0.50236961,3446.7,3446.4,0.826]
[1719905461854,0.50236961,3446.6,3446.4,0.826]
[1719905462056,5.22104,3446.8,3446.4,0.826]
[1719905462286,0.502393,3446.7,3446.5,0.02887945]
[1719905462474,5.22104,3446.8,3446.5,0.02887945]
[1719905462781,0.50239299,3446.7,3446.5,0.02887945]
[1719905462973,5.22104,3446.8,3446.5,0.02887945]
[1719905463168,0.50239083,3446.7,3446.5,0.02887945]
[1719905463387,5.22104,3446.8,3446.5,0.02887945]
[1719905463560,0.50239325,3446.7,3446.5,0.02887945]
[1719905463764,5.22104,3446.8,3446.5,0.02887945]
[1719905463960,0.50238492,3446.7,3446.5,0.02887945]
[1719905464290,5.22104,3446.8,3446.5,0.02887945]
[1719905464588,0.5023839,3446.7,3446.5,0.02887945]
[1719905464791,5.22104,3446.8,3446.5,0.02887945]
[1719905464988,0.50238398,3446.7,3446.5,0.85487945]
[1719905465291,5.22104,3446.8,3446.5,0.85487945]
[1719905467089,0.50238929,3446.7,3446.5,0.85487945]
[1719905467391,5.22104,3446.8,3446.5,0.85487945]
[1719905471800,3.40372543,3446.7,3446.5,0.02887945]
[1719905472106,3.40372543,3446.7,3446.0,0.826]
[1719905472107,5.69703101,3446.6,3446.0,0.826]
[1719905472313,2.90163,3446.4,3446.0,0.826]
[1719905472989,2.90163,3446.4,3445.7,4.78941]
[1719905473310,2.90163,3446.4,3446.0,0.826]
[1719905474313,2.4354,3446.2,3446.0,0.826]
[1719905474521,2.90257,3445.3,3444.4,1.8873]
[1719905474685,0.50263161,3445.2,3444.4,1.8873]
[1719905474886,2.90257,3445.3,3444.9,0.826]
[1719905475085,0.50262697,3445.2,3444.9,0.826]
[1719905475294,2.90257,3445.3,3444.9,0.826]
[1719905475520,2.90272,3445.1,3444.9,0.826]
[1719905475814,2.90257,3445.3,3444.9,0.826]
[1719905476584,2.90257,3445.3,3444.4,4.79055]
[1719905476833,2.90257,3445.3,3444.8,0.826]
[1719905477574,2.90274,3445.1,3444.8,0.826]
[1719905478305,2.90276,3445.0,3444.8,0.826]
[1719905479521,2.90276,3445.0,3444.5,0.769398]
[1719905479522,2.90284,3444.9,3444.5,0.769398]
[1719905479812,2.90284,3444.9,3444.7,0.826]
[1719905480029,2.90292,3444.8,3444.1,4.8873]
[1719905480185,2.90308,3444.7,3444.1,1.8873]
[1719905480385,2.90308,3444.7,3444.4,0.826]
[1719905484183,2.9031,3444.6,3444.4,0.826]
[1719905487219,2.90317,3444.5,3443.8,1.8873]
[1719905487407,2.90326,3444.4,3443.9,0.50742798]
[1719905487607,2.90326,3444.4,3444.1,0.826]
[1719905491009,2.90326,3444.4,3444.2,0.02559515]
[1719905491346,2.90312,3444.6,3444.2,0.02559515]
[1719905491578,5.80668,3444.3,3444.2,0.02559515]
[1719905492145,2.90361,3444.0,3443.6,0.826]
[1719905492517,2.90361,3444.0,3443.7,0.02599481]
[1719905494529,2.90361,3444.0,3443.7,0.826]
[1719905494761,2.90361,3444.0,3443.4,3.0]
[1719905494762,2.90361,3444.0,3443.8,0.02609871]
[1719905495264,2.9037,3443.9,3443.6,0.826]
[1719905496430,2.9037,3443.9,3443.3,3.0]
[1719905496652,2.9037,3443.9,3443.7,0.826]
[1719905499163,2.9037,3443.9,3443.3,3.0]
[1719905499352,2.4053,3443.8,3443.4,0.826]
[1719905500032,2.4053,3443.8,3443.6,0.826]
[1719905500438,5.30907,3443.8,3443.5,0.826]
[1719905501667,5.30907,3443.8,3443.7,0.826]
[1719905502045,5.30907,3443.8,3443.5,0.826]
[1719905502372,5.30907,3443.8,3443.6,0.826]
[1719905504173,5.30907,3443.8,3443.4,0.826]
[1719905504643,5.30907,3443.8,3443.2,0.826]
[1719905504844,5.30907,3443.8,3443.4,0.826]
[1719905505371,5.80804,3443.5,3443.4,0.826]
[1719905505571,2.3833,3443.4,3442.4,1.8873]
[1719905505871,2.90436,3443.1,3442.7,0.826]
[1719905509570,2.90449,3443.0,3442.4,1.8873]
[1719905509773,2.90453,3442.9,3442.4,3.0]
[1719905509984,2.90453,3442.9,3442.5,0.826]
[1719905511279,2.90479,3442.6,3441.9,4.79265]
[1719905511479,2.90479,3442.6,3442.2,0.826]
[1719905512893,2.90479,3442.6,3442.4,0.826]
[1719905515125,2.4159,3442.5,3441.8,0.0207846]
[1719905515419,0.24159,3442.4,3441.8,0.0207846]
[1719905515580,2.90518,3442.2,3441.8,0.0207846]
[1719905516988,2.90522,3442.1,3441.8,0.0207846]
[1719905517901,2.9051,3442.3,3441.8,0.0207846]
[1719905519483,2.90522,3442.1,3441.8,0.0207846]
[1719905519903,2.90509,3442.3,3441.8,0.0207846]
[1719905520323,2.90512,3442.2,3441.8,0.0207846]
[1719905520617,2.9052,3442.1,3441.8,0.0207846]
[1719905520990,2.90508,3442.3,3441.8,0.0207846]
[1719905521313,2.90508,3442.3,3442.0,0.826]
[1719905521699,2.90496,3442.4,3442.0,0.826]
[1719905522012,2.90503,3442.3,3441.8,0.8467846]
[1719905522215,2.89703,3442.3,3441.8,0.8467846]
[1719905523923,5.32076,3442.5,3441.8,0.8467846]
[1719905524122,2.4159,3442.5,3442.0,0.826]
[1719905524487,2.4159,3442.5,3442.3,0.826]
[1719905525204,2.4159,3442.5,3442.0,0.826]
[1719905526814,2.90495,3442.4,3441.8,0.0207846]
[1719905527015,2.90495,3442.4,3441.8,0.8467846]
[1719905527324,2.90495,3442.4,3441.8,0.7967846]
[1719905527622,3.238429,3442.5,3442.1,0.826]
[1719905527827,0.38591601,3442.4,3442.1,0.826]
[1719905528131,3.26088601,3442.4,3441.9,0.826]
[1719905530521,3.26088601,3442.4,3441.8,0.826]
[1719905531311,3.26088601,3442.4,3442.0,0.826]
[1719905532128,3.26088601,3442.4,3441.8,0.826]
[1719905532322,0.52604087,3442.3,3441.8,0.826]
[1719905532727,3.43109087,3442.3,3441.6,2.9056]
[1719905532977,2.4268,3442.2,3441.7,0.826]
[1719905534829,2.4268,3442.2,3442.0,0.826]
[1719905535029,2.4268,3442.2,3441.8,0.826]
[1719905535030,0.50309152,3442.1,3441.8,0.826]
[1719905535209,5.33192,3442.2,3441.8,0.826]
[1719905535416,0.50309821,3442.1,3441.8,0.826]
[1719905535739,5.33192,3442.2,3441.4,5.81151]
[1719905535958,0.5031102,3442.1,3441.5,0.826]
[1719905536329,6.24380469,3442.2,3441.5,0.826]
[1719905536511,0.50310771,3442.1,3441.5,0.826]
[1719905536714,6.24380469,3442.2,3441.5,0.826]
[1719905537031,0.50309949,3442.1,3441.7,0.826]
[1719905537343,6.24380469,3442.2,3441.7,0.826]
[1719905537548,0.50309518,3442.1,3441.7,0.826]
[1719905537707,0.50309518,3442.0,3441.7,0.826]
[1719905537912,6.24380469,3442.2,3441.7,0.826]
[1719905538113,1.19525862,3442.1,3441.7,0.826]
[1719905538314,0.50309521,3442.0,3441.6,0.826]
[1719905538511,0.5031131,3441.9,3441.5,0.826]
[1719905538810,2.9053,3442.0,3441.5,0.826]
[1719905539022,0.50310524,3441.9,3441.5,0.826]
[1719905539218,2.9053,3442.0,3441.5,0.826]
[1719905539412,0.50310385,3441.9,3441.5,0.826]
[1719905539611,2.9053,3442.0,3441.5,0.826]
[1719905539849,0.50310335,3441.9,3441.5,0.826]
[1719905540053,2.9053,3442.0,3441.5,0.826]
[1719905540228,0.50310338,3441.9,3441.5,0.826]
[1719905540431,0.50310452,3441.8,3441.5,0.826]
[1719905540638,2.9053,3442.0,3441.5,0.826]
[1719905540942,0.50309775,3441.9,3441.5,0.826]
[1719905541256,2.4268,3442.2,3441.7,0.826]
[1719905541448,3.4082829,3442.1,3441.7,0.826]
[1719905541753,0.5030629,3442.0,3441.7,0.826]
[1719905542649,2.90522,3442.1,3441.9,0.826]
[1719905542950,0.50308522,3442.0,3441.9,0.826]
[1719905543324,0.50308522,3442.0,3441.7,0.826]
[1719905543640,0.50308522,3441.9,3441.7,0.826]
[1719905543838,0.50308522,3441.8,3441.7,0.826]
[1719905544030,0.50308522,3442.0,3441.7,0.826]
[1719905545619,3.40838522,3442.0,3441.7,0.826]
[1719905545822,0.50308522,3441.9,3441.7,0.826]
[1719905546053,2.9053,3442.0,3441.7,0.826]
[1719905546237,0.5030923,3441.8,3441.7,0.826]
[1719905548352,0.5030923,3441.8,3441.2,2.90592]
[1719905548523,0.5030923,3441.7,3441.6,0.826]
[1719905548951,0.5030923,3441.8,3441.6,0.826]
[1719905549319,2.90538,3441.9,3441.6,0.826]
[1719905549662,0.50310101,3441.8,3441.3,2.90582]
[1719905549860,2.90538,3441.9,3441.6,0.826]
[1719905550155,0.50312139,3441.8,3441.6,0.826]
[1719905550333,0.50312139,3441.7,3441.6,0.826]
[1719905552736,0.50308946,3441.7,3441.6,0.826]
[1719905554383,0.50308946,3441.7,3441.4,2.90577]
[1719905554659,2.90531,3442.0,3441.2,4.7932]
[1719905554857,2.3178,3441.8,3441.1,2.90598]
[1719905555029,0.50309886,3441.7,3441.1,2.90598]
[1719905555228,0.50309886,3441.7,3441.0,2.90607]
[1719905555229,3.40869886,3441.7,3441.0,2.90607]
[1719905555434,2.82089886,3441.6,3441.0,2.90607]
[1719905555635,0.50309886,3441.5,3441.0,2.90607]
[1719905555845,2.3178,3441.6,3441.0,2.90607]
[1719905556045,0.50317843,3441.5,3441.1,0.03458976]
[1719905556249,0.50317843,3441.4,3441.1,0.03458976]
[1719905556457,0.50317843,3441.3,3441.1,0.03458976]
[1719905556765,0.50317843,3441.2,3441.1,0.03458976]
[1719905557634,0.50317843,3441.2,3441.1,0.86058976]
[1719905558248,2.3178,3441.6,3441.1,0.86058976]
[1719905558450,0.50315414,3441.5,3441.1,0.86058976]
[1719905558649,2.3178,3441.6,3441.1,0.86058976]
[1719905558847,0.5031492,3441.5,3441.3,0.826]
[1719905559372,0.5031492,3441.5,3441.4,0.02611215]
[1719905562044,2.3178,3441.6,3441.4,0.02611215]
[1719905567463,5.17786,3441.8,3441.4,0.02611215]
[1719905567669,5.986178,3441.8,3441.4,0.02611215]
[1719905568460,5.986178,3441.8,3441.3,0.826]
[1719905568660,5.986178,3441.8,3441.5,0.02611215]
[1719905568892,5.986178,3441.8,3441.3,0.826]
[1719905569061,5.986178,3441.8,3441.6,0.02611215]
[1719905569264,0.8891498,3441.7,3441.3,0.826]
[1719905569899,2.2724,3441.8,3441.5,0.826]
[1719905570891,2.2724,3441.8,3441.3,0.826]
[1719905575710,0.50313628,3441.7,3441.3,0.826]
[1719905575869,0.50313628,3441.6,3441.3,3.73186]
[1719905576212,0.50313628,3441.5,3441.3,3.73186]
[1719905576501,0.50313628,3441.4,3441.3,3.73186]
[1719905577409,0.50313581,3441.4,3441.3,3.73186]
[1719905577995,0.50313581,3441.4,3441.2,2.90593]
[1719905578177,2.2724,3441.8,3441.3,0.826]
[1719905578373,1.52123862,3441.7,3441.3,0.826]
[1719905578574,0.50314835,3441.6,3441.3,0.826]
[1719905580300,0.50314835,3441.6,3441.3,3.73187]
[1719905580508,0.808313,3441.7,3441.3,3.73187]
[1719905580703,0.50315198,3441.5,3441.3,3.73187]
[1719905580918,0.50315198,3441.4,3441.3,3.73187]
[1719905581096,0.50315192,3441.4,3441.3,3.73187]
[1719905581766,0.50315192,3441.4,3441.3,2.90587]
[1719905581978,0.50315192,3441.4,3441.3,3.73187]
[1719905582176,0.50315192,3441.4,3441.3,3.75808615]
[1719905582405,0.50315192,3441.4,3441.3,2.93208615]
[1719905583012,2.2724,3441.8,3441.3,2.93208615]
[1719905583220,0.71292808,3441.7,3441.3,2.93208615]
[1719905583432,0.50315156,3441.6,3441.3,2.93208615]
[1719905583717,0.50315156,3441.5,3441.3,2.93208615]
[1719905583920,0.50315156,3441.7,3441.3,2.93208615]
[1719905584220,0.50315156,3441.6,3441.3,2.93208615]
[1719905584512,0.50315156,3441.5,3441.3,3.75808615]
[1719905584675,0.50315156,3441.4,3441.3,3.75808615]
[1719905585896,0.50315156,3441.4,3441.3,2.93208615]
[1719905586302,2.2724,3441.8,3441.3,2.93208615]
[1719905586491,0.71292514,3441.7,3441.3,2.93208615]
[1719905586694,0.50314768,3441.6,3441.3,2.93208615]
[1719905586897,0.50314768,3441.5,3441.3,2.93208615]
[1719905587121,0.50314768,3441.4,3441.3,2.93208615]
[1719905587318,0.50314768,3441.7,3441.3,2.93208615]
[1719905588104,0.50314768,3441.7,3441.3,0.02621615]
[1719905589402,0.17972454,3441.6,3441.3,0.02621615]
[1719905589613,0.5031525,3441.5,3441.3,2.93206615]
[1719905589825,0.5031525,3441.4,3441.3,2.93206615]
[1719905590131,0.5031525,3441.7,3441.3,2.93206615]
[1719905590328,0.5031525,3441.4,3441.3,2.93206615]
[1719905591007,0.5031525,3441.7,3441.3,2.93206615]
[1719905592630,0.5031525,3441.7,3441.3,0.02621615]
[1719905592965,0.50315714,3441.6,3441.3,0.02621615]
[1719905593256,5.17787,3441.8,3441.1,2.90598]
[1719905593423,0.50316066,3441.5,3441.4,0.02621615]
[1719905593629,0.50316066,3441.5,3441.1,2.90598]
[1719905593827,0.50316066,3441.4,3441.1,3.758525]
[1719905594029,3.40871066,3441.7,3441.1,3.758525]
[1719905594322,0.50316066,3441.6,3441.1,2.90598]
[1719905595751,0.50316066,3441.6,3441.1,3.73198]
[1719905595967,2.90555,3441.7,3441.1,3.73198]
[1719905596243,0.50316637,3441.6,3441.1,3.73198]
[1719905596467,0.50316637,3441.5,3441.1,3.73198]
[1719905596764,0.50316637,3441.4,3441.1,3.73198]
[1719905597110,0.50316637,3441.3,3441.1,3.73198]
[1719905597306,2.90555,3441.7,3441.2,0.02623505]
[1719905597538,1.60523289,3441.6,3441.2,0.02623505]
[1719905597739,0.50316143,3441.5,3441.2,0.02623505]
[1719905597918,0.50316143,3441.6,3441.2,0.02623505]
[1719905599215,2.90555,3441.7,3441.3,0.826]
[1719905599414,0.50316571,3441.5,3441.3,0.826]
[1719905599638,2.90555,3441.7,3441.4,0.02623505]
[1719905599948,1.60558468,3441.6,3441.4,0.02623505]
[1719905600131,0.50316612,3441.5,3441.4,0.02623505]
[1719905600332,1.6055546,3441.5,3441.1,3.73198]
[1719905600542,2.90555,3441.7,3441.4,0.02623505]
[1719905600721,1.6055462,3441.6,3441.1,3.73198]
[1719905600927,2.90555,3441.7,3441.5,0.02623505]
[1719905601122,1.60554394,3441.6,3441.1,3.73198]
[1719905601322,1.60554394,3441.5,3441.1,3.73198]
[1719905601524,0.50316588,3441.4,3441.1,3.73198]
[1719905601726,0.50316588,3441.6,3441.1,3.73198]
[1719905601922,1.60557515,3441.5,3441.1,2.90598]
[1719905602128,0.50316588,3441.4,3441.1,2.90598]
[1719905602344,0.50316588,3441.3,3441.1,3.73198]
[1719905602656,0.50317488,3441.2,3441.1,3.73198]
[1719905605262,3.9512129,3441.2,3440.4,4.8873]
[1719905605418,2.08353419,3441.1,3440.4,2.90662]
[1719905605623,1.6058129,3441.0,3440.2,4.79945827]
[1719905605886,1.60588537,3440.9,3440.3,2.90671]
[1719905606050,1.60588612,3440.8,3440.3,3.73271]
[1719905606230,0.50328542,3440.7,3440.2,1.89268827]
[1719905606420,2.90622,3440.9,3440.2,0.83138827]
[1719905606421,0.50330273,3440.6,3440.2,0.83138827]
[1719905606735,0.50330273,3440.5,3440.4,0.826]
[1719905607058,0.50330273,3440.5,3440.3,2.90671]
[1719905607215,2.2939,3440.8,3440.4,0.826]
[1719905607423,0.50327644,3440.7,3440.4,0.826]
[1719905607621,0.50327644,3440.6,3440.4,0.826]
[1719905607821,0.50327644,3440.7,3440.4,0.826]
[1719905608031,0.50327644,3440.6,3440.4,0.826]
[1719905608363,2.2939,3440.8,3440.4,0.826]